[Event "Titled Tuesday Blitz May 23 Early 2023"]
[White "Lenderman, Aleksandr"]
[Black "Liu, Casper"]
[WhiteFideId "2021285"]
[BlackFideId "1454153"]
[WhiteElo "2607"]
[BlackElo "2221"]
[Result "1-0"]
[Round "06"]
[TimeControl "180+2"]
[Date "2023.05.23"]
[WhiteClock "0:00:30"]
[BlackClock "0:00:34"]

1. e4 {[%clk 0:02:43]}  c5 {[%clk 0:02:59]} 2. Nf3 {[%clk 0:02:40]}  d6 {[%clk 0:03:00]} 3. d4 {[%clk 0:02:40]}  Nf6 {[%clk 0:03:00]} 4. dxc5 {[%clk 0:02:30]}  Nxe4 {[%clk 0:03:00]} 5. cxd6 {[%clk 0:02:28]}  Nxd6 {[%clk 0:03:01]} 6. Be2 {[%clk 0:02:27]}  Nc6 {[%clk 0:03:02]} 7. O-O {[%clk 0:02:27]}  g6 {[%clk 0:03:02]} 8. c4 {[%clk 0:02:25]}  Bg7 {[%clk 0:03:00]} 9. Nc3 {[%clk 0:02:25]}  O-O {[%clk 0:03:00]} 10. Bf4 {[%clk 0:02:25]}  Be6 {[%clk 0:02:57]} 11. Rc1 {[%clk 0:02:24]}  Nxc4 {[%clk 0:02:56]} 12. Ng5 {[%clk 0:02:17]}  Qxd1 {[%clk 0:02:28]} 13. Rfxd1 {[%clk 0:02:16]}  Nxb2 {[%clk 0:02:19]} 14. Rd2 {[%clk 0:02:16]}  Bxc3 {[%clk 0:02:18]} 15. Rxc3 {[%clk 0:02:16]}  Na4 {[%clk 0:02:19]} 16. Ra3 {[%clk 0:02:09]}  Nb6 {[%clk 0:02:14]} 17. Nxe6 {[%clk 0:01:39]}  fxe6 {[%clk 0:02:15]} 18. Be3 {[%clk 0:01:39]}  Nd5 {[%clk 0:02:15]} 19. Bh6 {[%clk 0:01:38]}  Rfd8 {[%clk 0:02:09]} 20. Bg4 {[%clk 0:01:38]}  Kf7 {[%clk 0:02:09]} 21. Re2 {[%clk 0:01:19]}  Nd4 {[%clk 0:02:02]} 22. Re1 {[%clk 0:01:14]}  Nf6 {[%clk 0:01:43]} 23. Bd1 {[%clk 0:01:09]}  a6 {[%clk 0:01:32]} 24. Rh3 {[%clk 0:01:08]}  Rac8 {[%clk 0:01:28]} 25. Be3 {[%clk 0:01:07]}  Nf5 {[%clk 0:01:18]} 26. Bb3 {[%clk 0:01:06]}  Rc6 {[%clk 0:01:01]} 27. Rf3 {[%clk 0:00:58]}  Kg7 {[%clk 0:00:56]} 28. Bg5 {[%clk 0:00:53]}  Ne4 {[%clk 0:00:51]} 29. Rxe4 {[%clk 0:00:49]}  Nd4 {[%clk 0:00:47]} 30. Rxd4 {[%clk 0:00:32]}  Rxd4 {[%clk 0:00:47]} 31. g3 {[%clk 0:00:33]}  Rc7 {[%clk 0:00:41]} 32. Bxe6 {[%clk 0:00:30]}  Rc2 {[%clk 0:00:33]} 33. Rf7+ {[%clk 0:00:29]}  Kh8 {[%clk 0:00:34]} 34. Rf8+ {[%clk 0:00:29]}  Kg7 {[%clk 0:00:34]} 35. Rg8# {[%clk 0:00:30]} 1-0


[Site "https://www.chess.com"]

[Event "Titled Tuesday Blitz May 23 Early 2023"]
[White "Durarbayli, Vasif"]
[Black "Prohaszka, Peter"]
[WhiteFideId "13402935"]
[BlackFideId "726265"]
[WhiteElo "2551"]
[BlackElo "2626"]
[Result "1-0"]
[Round "06"]
[TimeControl "180+2"]
[Date "2023.05.23"]
[WhiteClock "0:00:15"]
[BlackClock "0:00:01"]

1. e4 {[%clk 0:03:00]}  c6 {[%clk 0:02:52]} 2. d4 {[%clk 0:03:01]}  d5 {[%clk 0:02:53]} 3. exd5 {[%clk 0:03:00]}  cxd5 {[%clk 0:02:52]} 4. c4 {[%clk 0:03:01]}  Nf6 {[%clk 0:02:52]} 5. Nc3 {[%clk 0:03:02]}  Nc6 {[%clk 0:02:52]} 6. Nf3 {[%clk 0:03:02]}  Be6 {[%clk 0:02:42]} 7. c5 {[%clk 0:02:57]}  g6 {[%clk 0:02:33]} 8. Bb5 {[%clk 0:02:55]}  Bg7 {[%clk 0:02:08]} 9. h3 {[%clk 0:02:50]}  O-O {[%clk 0:02:07]} 10. O-O {[%clk 0:02:50]}  Ne4 {[%clk 0:02:05]} 11. Re1 {[%clk 0:02:50]}  Bf5 {[%clk 0:01:37]} 12. Qa4 {[%clk 0:02:32]}  Rc8 {[%clk 0:00:54]} 13. Bf4 {[%clk 0:02:27]}  a6 {[%clk 0:00:48]} 14. Bxc6 {[%clk 0:02:25]}  Nxc3 {[%clk 0:00:47]} 15. bxc3 {[%clk 0:02:24]}  Rxc6 {[%clk 0:00:47]} 16. Ne5 {[%clk 0:02:21]}  Rc8 {[%clk 0:00:47]} 17. Qb4 {[%clk 0:02:17]}  f6 {[%clk 0:00:41]} 18. Nf3 {[%clk 0:02:10]}  Qd7 {[%clk 0:00:39]} 19. Re2 {[%clk 0:02:03]}  Bd3 {[%clk 0:00:35]} 20. Rb2 {[%clk 0:02:01]}  Bb5 {[%clk 0:00:36]} 21. a4 {[%clk 0:01:46]}  Bc6 {[%clk 0:00:35]} 22. Rba2 {[%clk 0:01:43]}  Rce8 {[%clk 0:00:28]} 23. Re1 {[%clk 0:01:43]}  Qf5 {[%clk 0:00:25]} 24. Bc7 {[%clk 0:01:36]}  e5 {[%clk 0:00:22]} 25. Bd6 {[%clk 0:01:34]}  Rf7 {[%clk 0:00:22]} 26. dxe5 {[%clk 0:01:13]}  fxe5 {[%clk 0:00:23]} 27. Rae2 {[%clk 0:01:13]}  e4 {[%clk 0:00:13]} 28. Nd4 {[%clk 0:01:14]}  Qd7 {[%clk 0:00:09]} 29. a5 {[%clk 0:01:04]}  Bf8 {[%clk 0:00:04]} 30. Bxf8 {[%clk 0:00:46]}  Rexf8 {[%clk 0:00:04]} 31. Rd2 {[%clk 0:00:47]}  Qe7 {[%clk 0:00:03]} 32. Nc2 {[%clk 0:00:43]}  Qh4 {[%clk 0:00:03]} 33. Qd4 {[%clk 0:00:34]}  g5 {[%clk 0:00:02]} 34. Re3 {[%clk 0:00:33]}  h5 {[%clk 0:00:02]} 35. Rg3 {[%clk 0:00:29]}  g4 {[%clk 0:00:02]} 36. hxg4 {[%clk 0:00:29]}  hxg4 {[%clk 0:00:03]} 37. Ne3 {[%clk 0:00:28]}  Rg7 {[%clk 0:00:04]} 38. c4 {[%clk 0:00:20]}  dxc4 {[%clk 0:00:03]} 39. Qxc4+ {[%clk 0:00:21]}  Kh7 {[%clk 0:00:03]} 40. Rd6 {[%clk 0:00:15]}  Rxf2 {[%clk 0:00:03]} 41. Kxf2 {[%clk 0:00:15]}  Rf7+ {[%clk 0:00:01]} 42. Qxf7+ {[%clk 0:00:15]} 1-0


[Site "https://www.chess.com"]

[Event "Titled Tuesday Blitz May 23 Early 2023"]
[White "demon64fields"]
[Black "Simonian, Hrair"]
[BlackFideId "13302337"]
[WhiteElo "2868"]
[BlackElo "2447"]
[Result "1-0"]
[Round "06"]
[TimeControl "180+2"]
[Date "2023.05.23"]
[WhiteClock "0:01:37"]
[BlackClock "0:00:11"]

1. Nf3 {[%clk 0:03:00]}  Nf6 {[%clk 0:02:59]} 2. g3 {[%clk 0:03:01]}  b6 {[%clk 0:03:00]} 3. Bg2 {[%clk 0:03:02]}  Bb7 {[%clk 0:03:00]} 4. O-O {[%clk 0:03:02]}  e6 {[%clk 0:03:01]} 5. d3 {[%clk 0:03:03]}  c5 {[%clk 0:03:00]} 6. Nbd2 {[%clk 0:03:03]}  d5 {[%clk 0:02:59]} 7. e4 {[%clk 0:03:04]}  Nc6 {[%clk 0:02:57]} 8. Re1 {[%clk 0:03:04]}  Be7 {[%clk 0:02:58]} 9. e5 {[%clk 0:03:04]}  Nd7 {[%clk 0:02:58]} 10. h4 {[%clk 0:03:04]}  Qc7 {[%clk 0:02:58]} 11. Qe2 {[%clk 0:03:04]}  h6 {[%clk 0:02:53]} 12. Nf1 {[%clk 0:03:05]}  O-O-O {[%clk 0:02:51]} 13. N1h2 {[%clk 0:03:04]}  Rdg8 {[%clk 0:02:50]} 14. Ng4 {[%clk 0:03:04]}  g5 {[%clk 0:02:37]} 15. h5 {[%clk 0:03:04]}  Bf8 {[%clk 0:02:10]} 16. c3 {[%clk 0:03:03]}  d4 {[%clk 0:02:08]} 17. cxd4 {[%clk 0:03:02]}  cxd4 {[%clk 0:02:09]} 18. Bd2 {[%clk 0:03:01]}  Kb8 {[%clk 0:01:19]} 19. Rac1 {[%clk 0:02:59]}  a5 {[%clk 0:01:09]} 20. a3 {[%clk 0:02:46]}  a4 {[%clk 0:01:06]} 21. Rc4 {[%clk 0:02:45]}  b5 {[%clk 0:01:03]} 22. Rc2 {[%clk 0:02:43]}  Be7 {[%clk 0:00:57]} 23. Rec1 {[%clk 0:02:42]}  Qb6 {[%clk 0:00:54]} 24. Rxc6 {[%clk 0:02:14]}  Bxc6 {[%clk 0:00:53]} 25. Rxc6 {[%clk 0:02:15]}  Qxc6 {[%clk 0:00:50]} 26. Nxd4 {[%clk 0:02:16]}  Qc5 {[%clk 0:00:31]} 27. Nc6+ {[%clk 0:02:16]}  Kc7 {[%clk 0:00:29]} 28. Ba5+ {[%clk 0:01:46]}  Nb6 {[%clk 0:00:25]} 29. d4 {[%clk 0:01:44]}  Qxc6 {[%clk 0:00:17]} 30. Bxc6 {[%clk 0:01:43]}  Kxc6 {[%clk 0:00:18]} 31. Qf3+ {[%clk 0:01:36]}  Nd5 {[%clk 0:00:18]} 32. Qxf7 {[%clk 0:01:37]}  Kd7 {[%clk 0:00:11]} 33. Nf6+ {[%clk 0:01:37]} 1-0


[Site "https://www.chess.com"]

[Event "Titled Tuesday Blitz May 23 Early 2023"]
[White "MKlose11"]
[Black "Stribuk, Artiom"]
[BlackFideId "13515659"]
[WhiteElo "2682"]
[BlackElo "2303"]
[Result "0-1"]
[Round "06"]
[TimeControl "180+2"]
[Date "2023.05.23"]
[WhiteClock "0:00:23"]
[BlackClock "0:00:12"]

1. e4 {[%clk 0:03:00]}  c5 {[%clk 0:02:55]} 2. Nc3 {[%clk 0:03:00]}  Nc6 {[%clk 0:02:54]} 3. g3 {[%clk 0:03:00]}  g6 {[%clk 0:02:47]} 4. Bg2 {[%clk 0:03:00]}  Bg7 {[%clk 0:02:48]} 5. d3 {[%clk 0:03:01]}  d6 {[%clk 0:02:48]} 6. Be3 {[%clk 0:03:00]}  e5 {[%clk 0:02:48]} 7. Qd2 {[%clk 0:03:00]}  Nge7 {[%clk 0:02:49]} 8. Bh6 {[%clk 0:03:00]}  O-O {[%clk 0:02:49]} 9. Bxg7 {[%clk 0:03:00]}  Kxg7 {[%clk 0:02:50]} 10. f4 {[%clk 0:02:58]}  f6 {[%clk 0:02:44]} 11. Nf3 {[%clk 0:02:58]}  Be6 {[%clk 0:02:44]} 12. O-O {[%clk 0:02:58]}  Qd7 {[%clk 0:02:43]} 13. Rae1 {[%clk 0:02:56]}  Rae8 {[%clk 0:02:43]} 14. a3 {[%clk 0:02:47]}  b6 {[%clk 0:02:40]} 15. Rf2 {[%clk 0:02:39]}  Nd4 {[%clk 0:02:31]} 16. Nd1 {[%clk 0:02:36]}  Nec6 {[%clk 0:02:12]} 17. c3 {[%clk 0:02:34]}  Nxf3+ {[%clk 0:02:13]} 18. Bxf3 {[%clk 0:02:30]}  d5 {[%clk 0:02:11]} 19. Ne3 {[%clk 0:02:08]}  d4 {[%clk 0:01:53]} 20. Nd5 {[%clk 0:01:50]}  exf4 {[%clk 0:01:44]} 21. Nxf4 {[%clk 0:01:48]}  Ne5 {[%clk 0:01:38]} 22. c4 {[%clk 0:01:48]}  Bg8 {[%clk 0:01:26]} 23. Ref1 {[%clk 0:01:48]}  b5 {[%clk 0:01:27]} 24. b3 {[%clk 0:01:40]}  bxc4 {[%clk 0:01:26]} 25. bxc4 {[%clk 0:01:40]}  Rb8 {[%clk 0:01:26]} 26. Qa5 {[%clk 0:01:36]}  Rfc8 {[%clk 0:01:04]} 27. Bd1 {[%clk 0:01:32]}  Rb1 {[%clk 0:01:00]} 28. Ba4 {[%clk 0:01:19]}  Qb7 {[%clk 0:00:54]} 29. Bb5 {[%clk 0:01:14]}  Rxf1+ {[%clk 0:00:52]} 30. Rxf1 {[%clk 0:01:15]}  Qb6 {[%clk 0:00:50]} 31. Qa4 {[%clk 0:01:05]}  a6 {[%clk 0:00:47]} 32. Bd7 {[%clk 0:00:54]}  Rb8 {[%clk 0:00:40]} 33. h4 {[%clk 0:00:39]}  Qb3 {[%clk 0:00:31]} 34. Qxa6 {[%clk 0:00:35]}  Nxd7 {[%clk 0:00:30]} 35. Qd6 {[%clk 0:00:32]}  Qb7 {[%clk 0:00:16]} 36. Qe7+ {[%clk 0:00:32]}  Kh8 {[%clk 0:00:15]} 37. h5 {[%clk 0:00:33]}  Rf8 {[%clk 0:00:06]} 38. h6 {[%clk 0:00:30]}  Rf7 {[%clk 0:00:06]} 39. Qd8 {[%clk 0:00:25]}  Qb8 {[%clk 0:00:06]} 40. Qa5 {[%clk 0:00:24]}  Ne5 {[%clk 0:00:06]} 41. Nd5 {[%clk 0:00:23]}  Nxd3 {[%clk 0:00:05]} 42. Nxf6 {[%clk 0:00:21]}  Qxg3+ {[%clk 0:00:05]} 43. Kh1 {[%clk 0:00:22]}  Qh4+ {[%clk 0:00:05]} 44. Kg2 {[%clk 0:00:21]}  Rxf6 {[%clk 0:00:06]} 45. Rxf6 {[%clk 0:00:21]}  Qxf6 {[%clk 0:00:07]} 46. Qc7 {[%clk 0:00:21]}  Qf2+ {[%clk 0:00:06]} 47. Kh3 {[%clk 0:00:21]}  Qf3+ {[%clk 0:00:07]} 48. Kh2 {[%clk 0:00:20]}  Qf4+ {[%clk 0:00:07]} 49. Qxf4 {[%clk 0:00:20]}  Nxf4 {[%clk 0:00:08]} 50. Kg3 {[%clk 0:00:20]}  g5 {[%clk 0:00:09]} 51. a4 {[%clk 0:00:20]}  Bxc4 {[%clk 0:00:10]} 52. a5 {[%clk 0:00:21]}  Ba6 {[%clk 0:00:10]} 53. Kg4 {[%clk 0:00:22]}  Ne6 {[%clk 0:00:11]} 54. Kf5 {[%clk 0:00:22]}  Bc8 {[%clk 0:00:11]} 55. Ke5 {[%clk 0:00:22]}  d3 {[%clk 0:00:12]} 56. Kd6 {[%clk 0:00:22]}  d2 {[%clk 0:00:12]} 57. Ke7 {[%clk 0:00:23]}  d1=Q {[%clk 0:00:12]} 58. e5 {[%clk 0:00:23]}  Qd8+ {[%clk 0:00:12]} 0-1


[Site "https://www.chess.com"]

[Event "Titled Tuesday Blitz May 23 Early 2023"]
[White "Maltsevskaya, Aleksandra"]
[Black "Salinas Herrera, Pablo"]
[WhiteFideId "24174041"]
[BlackFideId "3407128"]
[WhiteElo "2302"]
[BlackElo "2546"]
[Result "1-0"]
[Round "06"]
[TimeControl "180+2"]
[Date "2023.05.23"]
[WhiteClock "0:01:19"]
[BlackClock "0:00:09"]

1. e4 {[%clk 0:03:00]}  c5 {[%clk 0:02:58]} 2. Nf3 {[%clk 0:03:00]}  e6 {[%clk 0:02:59]} 3. Nc3 {[%clk 0:03:01]}  a6 {[%clk 0:02:59]} 4. d4 {[%clk 0:03:01]}  cxd4 {[%clk 0:03:00]} 5. Nxd4 {[%clk 0:03:02]}  Qc7 {[%clk 0:02:59]} 6. Bd3 {[%clk 0:03:01]}  d6 {[%clk 0:02:58]} 7. O-O {[%clk 0:03:00]}  Nd7 {[%clk 0:02:59]} 8. f4 {[%clk 0:03:01]}  Ngf6 {[%clk 0:02:59]} 9. Be3 {[%clk 0:03:01]}  b5 {[%clk 0:02:59]} 10. a4 {[%clk 0:03:01]}  b4 {[%clk 0:02:59]} 11. Na2 {[%clk 0:03:01]}  Bb7 {[%clk 0:02:59]} 12. f5 {[%clk 0:02:58]}  e5 {[%clk 0:02:59]} 13. Nf3 {[%clk 0:02:55]}  Nxe4 {[%clk 0:02:56]} 14. Bxe4 {[%clk 0:02:49]}  Bxe4 {[%clk 0:02:56]} 15. Nxb4 {[%clk 0:02:49]}  Nf6 {[%clk 0:02:56]} 16. c3 {[%clk 0:02:44]}  a5 {[%clk 0:02:47]} 17. Nc2 {[%clk 0:02:42]}  h6 {[%clk 0:02:46]} 18. Na3 {[%clk 0:02:41]}  Be7 {[%clk 0:02:44]} 19. Nb5 {[%clk 0:02:42]}  Qc6 {[%clk 0:02:44]} 20. Qe2 {[%clk 0:02:22]}  O-O {[%clk 0:02:42]} 21. Nd2 {[%clk 0:02:22]}  Qb7 {[%clk 0:02:32]} 22. Nxe4 {[%clk 0:02:17]}  Qxe4 {[%clk 0:02:33]} 23. Qd2 {[%clk 0:02:13]}  Qc6 {[%clk 0:02:19]} 24. Rad1 {[%clk 0:02:03]}  d5 {[%clk 0:02:18]} 25. Rfe1 {[%clk 0:01:58]}  Rfe8 {[%clk 0:02:18]} 26. Bf2 {[%clk 0:01:50]}  Bf8 {[%clk 0:02:18]} 27. Bg3 {[%clk 0:01:33]}  Bd6 {[%clk 0:00:46]} 28. Bh4 {[%clk 0:01:28]}  Rad8 {[%clk 0:00:36]} 29. Bxf6 {[%clk 0:01:24]}  Bc5+ {[%clk 0:00:36]} 30. Kh1 {[%clk 0:01:22]}  Qxf6 {[%clk 0:00:34]} 31. Nc7 {[%clk 0:01:20]}  Rf8 {[%clk 0:00:33]} 32. Nxd5 {[%clk 0:01:20]}  Qxf5 {[%clk 0:00:33]} 33. b4 {[%clk 0:01:18]}  axb4 {[%clk 0:00:33]} 34. cxb4 {[%clk 0:01:19]}  Bd4 {[%clk 0:00:09]} 35. Ne7+ {[%clk 0:01:19]} 1-0


[Site "https://www.chess.com"]

[Event "Titled Tuesday Blitz May 23 Early 2023"]
[White "Filgueira, Hernan"]
[Black "Suyarov, Mukhammadzokhid"]
[WhiteFideId "101770"]
[BlackFideId "14210495"]
[WhiteElo "2363"]
[BlackElo "2361"]
[Result "0-1"]
[Round "06"]
[TimeControl "180+2"]
[Date "2023.05.23"]
[WhiteClock "0:00:04"]
[BlackClock "0:01:53"]

1. c4 {[%clk 0:02:59]}  e5 {[%clk 0:02:58]} 2. Nc3 {[%clk 0:02:57]}  g6 {[%clk 0:02:59]} 3. d4 {[%clk 0:02:52]}  Nc6 {[%clk 0:02:59]} 4. Nf3 {[%clk 0:02:50]}  exd4 {[%clk 0:02:57]} 5. Nxd4 {[%clk 0:02:49]}  Bg7 {[%clk 0:02:58]} 6. Nxc6 {[%clk 0:02:50]}  dxc6 {[%clk 0:02:59]} 7. g3 {[%clk 0:02:50]}  Qxd1+ {[%clk 0:02:54]} 8. Nxd1 {[%clk 0:02:50]}  Be6 {[%clk 0:02:55]} 9. Ne3 {[%clk 0:02:47]}  O-O-O {[%clk 0:02:52]} 10. h4 {[%clk 0:02:35]}  Nf6 {[%clk 0:02:52]} 11. Bh3 {[%clk 0:02:30]}  Bxh3 {[%clk 0:02:51]} 12. Rxh3 {[%clk 0:02:30]}  Rhe8 {[%clk 0:02:52]} 13. Rb1 {[%clk 0:02:20]}  Ne4 {[%clk 0:02:36]} 14. h5 {[%clk 0:02:14]}  g5 {[%clk 0:02:32]} 15. g4 {[%clk 0:01:59]}  Be5 {[%clk 0:02:30]} 16. Rf3 {[%clk 0:01:56]}  f6 {[%clk 0:02:26]} 17. Nf5 {[%clk 0:01:40]}  Rd7 {[%clk 0:02:24]} 18. Rd3 {[%clk 0:01:29]}  Rxd3 {[%clk 0:02:24]} 19. exd3 {[%clk 0:01:28]}  Nc5 {[%clk 0:02:25]} 20. Be3 {[%clk 0:01:02]}  Nxd3+ {[%clk 0:02:24]} 21. Ke2 {[%clk 0:00:59]}  Nxb2 {[%clk 0:02:25]} 22. Rc1 {[%clk 0:00:52]}  Na4 {[%clk 0:02:24]} 23. Rc2 {[%clk 0:00:51]}  b6 {[%clk 0:02:23]} 24. h6 {[%clk 0:00:38]}  Bf4 {[%clk 0:02:18]} 25. Kf3 {[%clk 0:00:37]}  Bxe3 {[%clk 0:02:13]} 26. fxe3 {[%clk 0:00:35]}  Nc5 {[%clk 0:02:14]} 27. Ng3 {[%clk 0:00:30]}  Nd7 {[%clk 0:02:07]} 28. Nh5 {[%clk 0:00:25]}  Ne5+ {[%clk 0:02:06]} 29. Kg3 {[%clk 0:00:25]}  Re6 {[%clk 0:02:07]} 30. Rf2 {[%clk 0:00:21]}  Nd7 {[%clk 0:02:03]} 31. Rf3 {[%clk 0:00:19]}  Kd8 {[%clk 0:02:02]} 32. a3 {[%clk 0:00:16]}  Ke7 {[%clk 0:01:59]} 33. Ng7 {[%clk 0:00:15]}  Re4 {[%clk 0:01:57]} 34. Nf5+ {[%clk 0:00:15]}  Kf7 {[%clk 0:01:57]} 35. Nd4 {[%clk 0:00:12]}  Ne5 {[%clk 0:01:57]} 36. Rf5 {[%clk 0:00:09]}  Rxe3+ {[%clk 0:01:57]} 37. Kg2 {[%clk 0:00:04]}  Re4 {[%clk 0:01:53]} 0-1


[Site "https://www.chess.com"]

[Event "Titled Tuesday Blitz May 23 Early 2023"]
[White "Bryakin, Mikhail"]
[Black "bubeliang"]
[WhiteFideId "4165314"]
[WhiteElo "2467"]
[BlackElo "2605"]
[Result "0-1"]
[Round "06"]
[TimeControl "180+2"]
[Date "2023.05.23"]
[WhiteClock "0:01:41"]
[BlackClock "0:00:13"]

1. Nf3 {[%clk 0:02:50]}  Nf6 {[%clk 0:02:56]} 2. e3 {[%clk 0:02:44]}  g6 {[%clk 0:02:53]} 3. d4 {[%clk 0:02:45]}  Bg7 {[%clk 0:02:52]} 4. Bd3 {[%clk 0:02:44]}  d5 {[%clk 0:02:51]} 5. O-O {[%clk 0:02:45]}  O-O {[%clk 0:02:50]} 6. b3 {[%clk 0:02:46]}  c5 {[%clk 0:02:50]} 7. Bb2 {[%clk 0:02:46]}  cxd4 {[%clk 0:02:48]} 8. exd4 {[%clk 0:02:46]}  Nc6 {[%clk 0:02:49]} 9. Ne5 {[%clk 0:02:47]}  Bf5 {[%clk 0:02:49]} 10. a3 {[%clk 0:02:42]}  Rc8 {[%clk 0:02:44]} 11. Nd2 {[%clk 0:02:40]}  Bxd3 {[%clk 0:02:26]} 12. cxd3 {[%clk 0:02:35]}  e6 {[%clk 0:02:20]} 13. Ndf3 {[%clk 0:02:34]}  Nd7 {[%clk 0:02:17]} 14. Re1 {[%clk 0:02:32]}  Ncxe5 {[%clk 0:02:03]} 15. dxe5 {[%clk 0:02:32]}  Rc6 {[%clk 0:02:00]} 16. b4 {[%clk 0:02:26]}  a6 {[%clk 0:01:56]} 17. Bd4 {[%clk 0:02:26]}  Qc7 {[%clk 0:01:51]} 18. Qd2 {[%clk 0:02:21]}  Rc8 {[%clk 0:01:46]} 19. h4 {[%clk 0:02:21]}  h5 {[%clk 0:01:44]} 20. Qg5 {[%clk 0:02:19]}  Nf8 {[%clk 0:01:44]} 21. g4 {[%clk 0:02:17]}  hxg4 {[%clk 0:01:08]} 22. Qxg4 {[%clk 0:02:18]}  Rc2 {[%clk 0:01:02]} 23. Kg2 {[%clk 0:02:16]}  Qe7 {[%clk 0:00:46]} 24. h5 {[%clk 0:02:15]}  gxh5 {[%clk 0:00:46]} 25. Qxh5 {[%clk 0:02:15]}  Ng6 {[%clk 0:00:46]} 26. Qg4 {[%clk 0:02:14]}  Bh6 {[%clk 0:00:29]} 27. Rh1 {[%clk 0:02:14]}  Kg7 {[%clk 0:00:29]} 28. Rh3 {[%clk 0:02:06]}  Rh8 {[%clk 0:00:23]} 29. Rah1 {[%clk 0:02:03]}  Ra2 {[%clk 0:00:21]} 30. Be3 {[%clk 0:02:00]}  Bxe3 {[%clk 0:00:15]} 31. Rxh8 {[%clk 0:02:00]}  Rxf2+ {[%clk 0:00:14]} 32. Kg3 {[%clk 0:01:59]}  Rxf3+ {[%clk 0:00:07]} 33. Qxf3 {[%clk 0:01:56]}  Qg5+ {[%clk 0:00:07]} 34. Qg4 {[%clk 0:01:47]}  Bf4+ {[%clk 0:00:07]} 35. Kh3 {[%clk 0:01:46]}  Kxh8 {[%clk 0:00:06]} 36. Qxg5 {[%clk 0:01:43]}  Bxg5 {[%clk 0:00:07]} 37. Kg4+ {[%clk 0:01:44]}  Bh4 {[%clk 0:00:08]} 38. d4 {[%clk 0:01:42]}  Kg7 {[%clk 0:00:06]} 39. Rc1 {[%clk 0:01:43]}  Bf2 {[%clk 0:00:06]} 40. Rc7 {[%clk 0:01:43]}  Bxd4 {[%clk 0:00:07]} 41. Rxb7 {[%clk 0:01:44]}  Nxe5+ {[%clk 0:00:07]} 42. Kf4 {[%clk 0:01:45]}  Nc4 {[%clk 0:00:07]} 43. a4 {[%clk 0:01:45]}  Bc3 {[%clk 0:00:07]} 44. b5 {[%clk 0:01:42]}  axb5 {[%clk 0:00:08]} 45. axb5 {[%clk 0:01:43]}  Ba5 {[%clk 0:00:08]} 46. Kg5 {[%clk 0:01:40]}  Bd2+ {[%clk 0:00:08]} 47. Kg4 {[%clk 0:01:39]}  Kf6 {[%clk 0:00:09]} 48. Rc7 {[%clk 0:01:38]}  Ba5 {[%clk 0:00:09]} 49. Rc6 {[%clk 0:01:37]}  Ne5+ {[%clk 0:00:09]} 50. Kf4 {[%clk 0:01:38]}  Nxc6 {[%clk 0:00:10]} 51. bxc6 {[%clk 0:01:39]}  Bc7+ {[%clk 0:00:10]} 52. Kf3 {[%clk 0:01:40]}  Ke7 {[%clk 0:00:11]} 53. Ke3 {[%clk 0:01:40]}  Kd6 {[%clk 0:00:12]} 54. Kd3 {[%clk 0:01:41]}  Kxc6 {[%clk 0:00:13]} 0-1


[Site "https://www.chess.com"]

[Event "Titled Tuesday Blitz May 23 Early 2023"]
[White "Vitiugov, Nikita"]
[Black "Sielecki, Christof"]
[WhiteFideId "4152956"]
[BlackFideId "4620437"]
[WhiteElo "2673"]
[BlackElo "2443"]
[Result "1-0"]
[Round "06"]
[TimeControl "180+2"]
[Date "2023.05.23"]
[WhiteClock "0:00:04"]
[BlackClock "0:00:00"]

1. e4 {[%clk 0:03:00]}  c5 {[%clk 0:02:58]} 2. Nf3 {[%clk 0:02:59]}  a6 {[%clk 0:02:58]} 3. c3 {[%clk 0:02:58]}  d5 {[%clk 0:02:58]} 4. exd5 {[%clk 0:02:55]}  Qxd5 {[%clk 0:02:59]} 5. d4 {[%clk 0:02:56]}  e6 {[%clk 0:02:58]} 6. Be3 {[%clk 0:02:50]}  Nd7 {[%clk 0:02:57]} 7. c4 {[%clk 0:02:36]}  Qc6 {[%clk 0:02:56]} 8. Nc3 {[%clk 0:02:36]}  Ngf6 {[%clk 0:02:55]} 9. Be2 {[%clk 0:02:32]}  b6 {[%clk 0:02:48]} 10. d5 {[%clk 0:02:30]}  exd5 {[%clk 0:02:48]} 11. cxd5 {[%clk 0:02:30]}  Qc7 {[%clk 0:02:49]} 12. O-O {[%clk 0:02:28]}  Bd6 {[%clk 0:02:49]} 13. a4 {[%clk 0:02:11]}  O-O {[%clk 0:02:48]} 14. h3 {[%clk 0:02:11]}  Re8 {[%clk 0:02:47]} 15. Re1 {[%clk 0:02:04]}  Bb7 {[%clk 0:02:47]} 16. Bc4 {[%clk 0:02:04]}  Ne5 {[%clk 0:02:44]} 17. Nxe5 {[%clk 0:02:04]}  Bxe5 {[%clk 0:02:35]} 18. Qb3 {[%clk 0:02:02]}  Bd4 {[%clk 0:02:15]} 19. Rad1 {[%clk 0:01:55]}  Bxe3 {[%clk 0:02:10]} 20. Rxe3 {[%clk 0:01:55]}  Rxe3 {[%clk 0:02:07]} 21. fxe3 {[%clk 0:01:49]}  Qd6 {[%clk 0:01:58]} 22. e4 {[%clk 0:01:46]}  Nd7 {[%clk 0:01:53]} 23. Be2 {[%clk 0:01:41]}  Ne5 {[%clk 0:01:52]} 24. Rf1 {[%clk 0:01:24]}  Bc8 {[%clk 0:01:40]} 25. Nd1 {[%clk 0:01:23]}  Bd7 {[%clk 0:01:32]} 26. Qa3 {[%clk 0:01:19]}  h6 {[%clk 0:01:07]} 27. Nf2 {[%clk 0:01:05]}  Qb8 {[%clk 0:00:48]} 28. Rc1 {[%clk 0:01:03]}  Qd6 {[%clk 0:00:39]} 29. a5 {[%clk 0:01:01]}  Bb5 {[%clk 0:00:18]} 30. Bd1 {[%clk 0:00:44]}  Nc4 {[%clk 0:00:18]} 31. Qc3 {[%clk 0:00:39]}  Nxa5 {[%clk 0:00:18]} 32. e5 {[%clk 0:00:39]}  Qxd5 {[%clk 0:00:18]} 33. Bf3 {[%clk 0:00:38]}  Qd8 {[%clk 0:00:18]} 34. Rd1 {[%clk 0:00:36]}  Qe8 {[%clk 0:00:18]} 35. Bxa8 {[%clk 0:00:34]}  Qxa8 {[%clk 0:00:19]} 36. Ng4 {[%clk 0:00:22]}  Nc6 {[%clk 0:00:19]} 37. Rd6 {[%clk 0:00:18]}  Nd4 {[%clk 0:00:19]} 38. Qe3 {[%clk 0:00:17]}  Bc6 {[%clk 0:00:15]} 39. Nxh6+ {[%clk 0:00:11]}  gxh6 {[%clk 0:00:15]} 40. Rxh6 {[%clk 0:00:09]}  Ne6 {[%clk 0:00:13]} 41. Qg3+ {[%clk 0:00:09]}  Ng7 {[%clk 0:00:13]} 42. Rd6 {[%clk 0:00:06]}  Be4 {[%clk 0:00:12]} 43. Qg5 {[%clk 0:00:06]}  Kh7 {[%clk 0:00:05]} 44. Qh4+ {[%clk 0:00:05]}  Kg8 {[%clk 0:00:00]} 45. Rd8+ {[%clk 0:00:04]} 1-0


[Site "https://www.chess.com"]